bitfinex/quotes_ETHUSD_20250908
["timestamp","ask_amount","ask_price","bid_price","bid_amount"]
[1757302547976,1.779,4319.0,4318.8,2.34245028]
[1757302548198,1.779,4319.0,4318.9,2.31540438]
[1757302548766,1.779,4319.0,4318.8,0.027]
[1757302549680,1.779,4319.0,4318.9,2.31540438]
[1757302549876,1.9902,4319.0,4318.9,2.31540438]
[1757302550566,1.779,4319.0,4318.9,2.31540438]
[1757302551190,1.779,4319.0,4318.9,2.60850438]
[1757302551391,1.779,4319.0,4318.9,3.06560438]
[1757302551901,1.779,4319.0,4318.9,3.51330438]
[1757302552142,5.652,4319.0,4318.9,3.51330438]
[1757302554043,1.779,4319.0,4318.9,3.51330438]
[1757302554344,5.651,4319.0,4318.9,3.51330438]
[1757302554850,3.44822376,4320.1,4320.0,144.2338]
[1757302555028,3.47813885,4320.1,4320.0,144.2338]
[1757302555229,5.8622,4320.1,4320.0,144.2338]
[1757302556649,6.298,4320.1,4320.0,144.2338]
[1757302557502,2.426,4320.1,4320.0,144.2338]
[1757302557740,6.298,4320.1,4320.0,144.2338]
[1757302558533,5.8622,4320.1,4320.0,144.2338]
[1757302561033,1.9902,4320.1,4320.0,144.2338]
[1757302561234,5.8612,4320.1,4320.0,144.2338]
[1757302561552,1.9902,4320.1,4320.0,144.2338]
[1757302561748,5.649,4320.1,4320.0,144.2338]
[1757302562051,5.649,4320.1,4320.0,144.6969]
[1757302562831,5.649,4320.1,4320.0,144.2338]
[1757302563040,5.8277,4320.1,4320.0,144.2338]
[1757302564505,5.649,4320.1,4320.0,144.2338]
[1757302565110,6.2957,4320.1,4320.0,144.2338]
[1757302565712,5.8306,4320.1,4320.0,144.2338]
[1757302569014,5.649,4320.1,4320.0,144.2338]
[1757302569911,5.646,4320.1,4320.0,145.4465]
[1757302570138,5.7612,4320.1,4320.0,144.991]
[1757302570340,5.7612,4320.1,4320.0,144.2338]
[1757302570532,6.0512,4320.1,4320.0,144.2338]
[1757302573033,8.36596123,4320.1,4320.0,144.2338]
[1757302573221,8.58261263,4320.1,4320.0,144.2338]
[1757302573623,15.04845076,4320.1,4320.0,144.2338]
[1757302574634,6.18934505,4320.1,4320.0,144.2338]
[1757302574837,13.45951834,4320.1,4320.0,144.2338]
[1757302575646,6.1526514,4320.1,4320.0,144.2338]
[1757302575848,5.8636514,4320.1,4320.0,144.2338]
[1757302576150,8.17841263,4320.1,4320.0,144.2338]
[1757302576652,8.35711263,4320.1,4320.0,144.2338]
[1757302576950,1.9956514,4320.1,4320.0,144.991]
[1757302577124,8.17741263,4320.1,4320.0,144.2338]
[1757302577325,8.35611263,4320.1,4320.0,144.2338]
[1757302579425,9.88661992,4320.1,4320.0,144.2338]
[1757302580447,10.35461992,4320.1,4320.0,144.2338]
[1757302580830,10.58199717,4320.1,4320.0,144.2338]
[1757302581431,8.17641263,4320.1,4320.0,144.991]
[1757302581835,8.17641263,4320.1,4320.0,144.2338]
[1757302583023,1.9956514,4320.1,4320.0,144.991]
[1757302583227,5.8656514,4320.1,4320.0,145.4465]
[1757302586658,10.49895711,4320.1,4320.0,145.4465]
[1757302587024,6.63095711,4320.1,4320.0,144.991]
[1757302587225,10.49895711,4320.1,4320.0,144.991]
[1757302587425,10.49895711,4320.1,4320.0,145.458]
[1757302587626,10.4992761,4320.1,4320.0,145.458]
[1757302587841,6.6312761,4320.1,4320.0,145.458]
[1757302588241,10.4992761,4320.1,4320.0,145.458]
[1757302588733,12.81403733,4320.1,4320.0,144.991]
[1757302589350,10.4992761,4320.1,4320.0,144.991]
[1757302589646,10.4992761,4320.1,4320.0,145.458]
[1757302590838,10.4992761,4320.1,4320.0,144.991]
[1757302591036,12.81403733,4320.1,4320.0,144.991]
[1757302591471,10.4982761,4320.1,4320.0,144.991]
[1757302591858,10.4982761,4320.1,4320.0,145.458]
[1757302594769,12.81303733,4320.1,4320.0,144.991]
[1757302594949,6.6312761,4320.1,4320.0,144.9906]
[1757302595136,10.4972761,4320.1,4320.0,145.4576]
[1757302596275,10.4962761,4320.1,4320.0,145.4576]
[1757302596575,6.6312761,4320.1,4320.0,145.4576]
[1757302596739,10.4962761,4320.1,4320.0,145.4576]
[1757302596940,10.4962761,4320.1,4320.0,147.77241481]
[1757302596941,0.21797039,4320.1,4320.0,147.77241481]
[1757302597238,0.001,4320.1,4320.0,147.77241481]
[1757302597438,0.001,4320.1,4320.0,147.88761481]
[1757302598371,3.869,4320.1,4320.0,145.5728]
[1757302598670,3.869,4320.1,4320.0,147.88761481]
[1757302601077,3.869,4320.1,4320.0,145.4576]
[1757302601480,3.9842,4320.1,4320.0,144.2338]
[1757302602057,4.1989,4320.1,4320.0,144.2338]
[1757302602581,3.9842,4320.1,4320.0,144.2338]
[1757302603575,3.9842,4320.1,4320.0,144.5275]
[1757302603744,3.9842,4320.1,4320.0,145.0132]
[1757302603948,3.9842,4320.1,4320.0,145.4802]
[1757302605353,3.9832,4320.1,4320.0,145.4802]
[1757302607789,3.9832,4320.1,4320.0,147.79501481]
[1757302607790,0.001,4320.1,4320.0,147.79501481]
[1757302610299,0.001,4320.1,4320.0,151.66201481]
[1757302610490,0.001,4320.1,4320.0,151.77721481]
[1757302612202,0.001,4320.1,4320.0,157.20352052]
[1757302612385,0.001,4320.1,4320.0,160.2961883]
[1757302613181,0.001,4320.1,4320.0,151.00288259]
[1757302613380,0.001,4320.1,4320.0,154.87188259]
[1757302617411,0.001,4320.1,4320.0,155.66388259]
[1757302617634,0.001,4320.1,4320.0,160.2981883]
[1757302621582,0.001,4320.1,4320.0,155.66388259]
[1757302625882,0.025,4320.8,4320.0,155.66388259]
[1757302626083,0.001,4321.0,4320.9,6.10633266]
[1757302626282,0.02,4321.9,4321.7,6.10590425]
[1757302626595,0.02,4321.9,4321.7,10.27510425]
[1757302626792,0.02,4321.9,4321.7,12.76874272]
[1757302627197,0.02,4321.9,4321.7,14.54674272]
[1757302627509,0.0902715,4321.8,4321.7,14.54674272]
[1757302627901,0.0902715,4321.8,4321.7,14.63937101]
[1757302628630,0.0902715,4321.8,4321.7,14.18427101]
[1757302628797,0.0902715,4321.8,4321.7,8.75907101]
[1757302628998,0.2764715,4321.8,4321.7,1.87062829]
[1757302629220,0.2764715,4321.8,4321.7,0.09262829]
[1757302629402,0.7369715,4321.8,4321.5,3.877]
[1757302629722,0.7369715,4321.8,4321.6,2.31395779]
[1757302629723,0.4605,4321.7,4321.6,2.31395779]
[1757302630019,0.6478,4321.7,4321.5,6.19095938]
[1757302630225,0.3593,4321.6,4320.9,1.778]
[1757302630390,0.3593,4321.6,4321.0,3.877]
[1757302630592,0.3593,4321.5,4321.3,2.3141017]
[1757302630823,0.0819,4321.7,4321.4,2.31406488]
[1757302631332,0.2885,4321.5,4321.1,3.0]
[1757302631491,0.2885,4321.5,4321.4,2.31403623]
[1757302631993,0.2885,4321.5,4321.3,2.31411471]
[1757302632313,0.2885,4321.5,4321.4,2.31406488]
[1757302632909,0.2885,4321.5,4321.1,3.0]
[1757302633224,0.3593,4321.4,4321.1,3.0]
[1757302633424,0.2885,4321.2,4321.1,5.31422554]
[1757302635194,0.2885,4321.2,4321.1,2.31422554]
[1757302636120,0.2885,4321.2,4321.1,2.42942554]
[1757302636836,0.4495715,4321.8,4321.4,2.31404977]
[1757302637197,0.2885,4321.5,4321.4,2.31404977]
[1757302637433,0.2885,4321.5,4321.3,2.31410476]
[1757302637639,0.3593,4321.4,4321.3,2.31410476]
[1757302637793,0.6478,4321.4,4321.3,2.31410476]
[1757302637993,0.6478,4321.4,4321.1,0.1152]
[1757302638292,0.6478,4321.4,4321.1,2.42941972]
[1757302638842,0.2885,4321.4,4321.1,0.1152]
[1757302639049,0.2885,4321.4,4321.3,2.31411843]
[1757302639411,0.2885,4321.4,4321.1,0.1152]
[1757302639412,2.31415822,4321.3,4321.1,0.1152]
[1757302639735,0.79359777,4321.4,4320.8,0.025]
[1757302639736,0.7297,4321.2,4320.8,0.025]
[1757302639937,0.6478,4321.2,4320.8,0.025]
[1757302640144,0.2885,4321.2,4320.8,0.025]
[1757302640307,0.2093,4321.1,4320.8,0.025]
[1757302640803,0.2885,4320.9,4320.8,0.025]
[1757302643843,0.2885,4320.9,4320.8,0.027]
[1757302648959,0.6478,4321.2,4320.8,0.027]
[1757302649556,0.0035,4320.9,4320.8,0.027]
[1757302650733,0.35074567,4320.9,4320.8,0.027]
[1757302651056,2.31783266,4320.9,4320.8,0.027]
[1757302651219,2.74413266,4320.9,4320.8,0.027]
[1757302651640,2.96050428,4320.9,4320.8,0.027]
[1757302652770,4.09087162,4320.9,4320.8,0.027]
[1757302652951,0.69519838,4321.0,4320.8,0.027]
[1757302652952,0.69519838,4321.0,4320.8,0.7928]
[1757302653119,3.872,4321.1,4320.8,0.027]
[1757302653325,0.0035,4320.9,4320.8,0.027]
[1757302654144,4.56705342,4321.1,4320.8,0.027]
[1757302654432,4.56705342,4321.1,4320.8,2.34137739]
[1757302654632,4.56705342,4321.1,4320.8,0.027]
[1757302654827,0.0035,4320.9,4320.8,0.027]
[1757302655566,4.56705342,4321.1,4320.8,1.2453]
[1757302655734,4.56705342,4321.1,4320.9,0.4588]
[1757302656361,0.69505342,4321.1,4321.0,0.307]
[1757302656578,3.9872,4321.2,4321.0,1.2183]
[1757302657250,0.0035,4321.1,4320.8,0.027]
[1757302658548,4.5716199,4321.3,4321.2,2.31417198]
[1757302658549,2.2575,4321.3,4321.2,2.31417198]
[1757302658869,0.001,4321.5,4321.2,2.31417198]
[1757302658870,0.001,4321.5,4321.4,2.31406488]
[1757302659257,0.69482805,4322.7,4321.7,3.10590425]
[1757302659449,0.025,4322.8,4321.7,11.02992266]
[1757302659646,0.025,4322.8,4321.8,6.10585071]
[1757302659858,0.025,4322.8,4321.8,7.01715071]
[1757302660064,0.025,4322.8,4321.8,7.32415071]
[1757302663852,0.021,4321.9,4321.8,7.32415071]
[1757302664033,0.021,4321.9,4321.8,8.26118295]
[1757302666345,1e-08,4321.9,4321.8,8.26118295]
[1757302668579,1e-08,4321.9,4321.8,8.37638295]
[1757302669455,0.02,4322.9,4321.8,8.37638295]
[1757302669658,2.16530001,4323.7,4323.3,2.31299672]
[1757302669969,0.0505,4323.4,4323.3,2.31299672]
[1757302670344,1.72300001,4323.7,4323.0,3.882]
[1757302670649,1.72300001,4323.7,4323.5,2.31288852]
[1757302670849,0.0505,4323.6,4323.5,2.31288852]
[1757302671480,0.025,4323.8,4322.6,3.0]
[1757302671679,0.025,4323.8,4322.4,2.2295]
[1757302671680,0.025,4323.8,4323.7,2.61983391]
[1757302671982,0.025,4323.8,4323.7,7.41613391]
[1757302672484,0.025,4323.8,4323.7,16.67841439]
[1757302673253,0.025,4323.8,4323.7,11.19523391]
[1757302674174,0.02,4323.9,4323.8,6.10478042]
[1757302674484,1e-08,4323.9,4323.8,7.70881883]
[1757302674685,0.025,4325.8,4325.7,3.10376456]
[1757302674871,0.025,4325.8,4325.7,9.07446456]
[1757302675184,1e-08,4325.9,4325.8,6.10371112]
[1757302675382,50.0,4326.0,4325.9,6.10365768]
[1757302675383,4.70382644,4326.0,4325.9,6.10365768]
[1757302675589,4.70382644,4326.0,4325.9,12.15038992]
[1757302675751,0.02,4326.9,4326.7,11.57351074]
[1757302675958,0.02,4326.9,4326.7,7.88023026]
[1757302676162,0.02,4326.9,4326.7,12.99293026]
[1757302676465,0.02,4326.9,4326.7,18.46321074]
[1757302676793,0.02,4326.9,4326.7,18.80909074]
[1757302677558,0.02,4326.9,4326.7,13.33881026]
[1757302677858,0.02,4326.9,4326.7,18.80909074]
[1757302678059,0.02,4326.9,4326.7,13.51709782]
[1757302679564,0.02,4326.9,4326.7,9.71129782]
[1757302679770,0.00082393,4327.0,4326.7,9.71129782]
[1757302679771,1e-08,4327.0,4326.8,3.792]
[1757302679983,1e-08,4327.0,4326.9,10.17243466]
[1757302680160,1e-08,4327.8,4327.7,3.10269621]
[1757302680361,1e-08,4327.8,4327.7,11.82269621]
[1757302680561,1e-08,4327.8,4327.7,13.01639621]
[1757302680766,1e-08,4327.8,4327.7,14.05941462]
[1757302681893,1e-08,4327.8,4327.7,12.11049621]
[1757302682410,1e-08,4327.8,4327.7,11.82469621]
[1757302682607,0.05220001,4327.8,4327.7,7.87869621]
[1757302682768,1e-08,4327.8,4327.7,12.54509621]
[1757302683473,1e-08,4327.8,4327.7,12.11149621]
[1757302684575,1e-08,4327.8,4327.7,13.01739621]
[1757302685280,0.28550001,4328.8,4328.6,2.3101786]
[1757302685605,0.5042,4328.9,4328.8,3.10210903]
[1757302685606,0.02,4328.9,4328.8,3.10210903]
[1757302685816,0.02,4328.9,4328.8,8.23134151]
[1757302685817,1e-08,4328.9,4328.8,8.23134151]
[1757302686173,1e-08,4328.9,4328.8,0.7601]
[1757302686386,1e-08,4328.9,4328.8,4.31891012]
[1757302686585,0.05,4329.8,4329.7,6.10162884]
[1757302686806,0.05,4329.8,4329.7,7.87662884]
[1757302687181,0.05,4329.8,4329.7,11.94862884]
[1757302687711,0.05,4329.8,4329.7,12.66902884]
[1757302687917,0.05,4329.8,4329.7,13.14232884]
[1757302688415,0.05,4329.8,4329.7,12.70872884]
[1757302688619,0.0518,4329.8,4329.7,11.95562884]
[1757302688782,0.0518,4329.8,4329.7,9.645]
[1757302688981,0.0518,4329.8,4329.7,11.95462884]
[1757302689177,0.05,4329.8,4329.7,12.24142884]
[1757302689506,0.05,4329.8,4329.7,13.14832884]
[1757302689699,0.05,4329.8,4329.7,12.67502884]
[1757302689905,0.05,4329.8,4329.7,11.95462884]
[1757302690305,0.05,4329.8,4329.7,12.79022884]
[1757302690686,0.05,4329.8,4329.7,13.26352884]
[1757302690883,0.025,4330.8,4329.8,6.1015755]
[1757302690884,1e-08,4329.9,4329.8,6.1015755]
[1757302691090,0.025,4330.8,4330.7,3.10109552]
[1757302691322,0.025,4330.8,4330.7,12.23789552]
[1757302691537,0.025,4330.8,4330.7,11.95109552]
[1757302691732,0.025,4330.8,4330.7,12.67149552]
[1757302691901,0.025,4330.8,4330.7,13.14479552]
[1757302692101,0.5092,4331.8,4331.7,0.792]
[1757302692102,0.025,4331.8,4331.7,0.792]
[1757302692288,0.025,4331.8,4331.7,3.10056245]
[1757302693020,0.0268,4331.8,4331.7,0.792]
[1757302693221,0.0268,4331.8,4331.7,6.40756245]
[1757302693387,0.6906,4331.8,4331.7,4.099]
[1757302693720,0.6906,4331.8,4331.5,6.40766535]
[1757302693924,0.4842,4331.7,4331.1,0.792]
[1757302694099,0.4842,4331.7,4330.9,2.30893836]
[1757302694100,0.6638,4331.7,4330.1,0.4336]
[1757302694301,0.6656,4331.6,4331.0,2.30891982]
[1757302694493,0.0018,4331.1,4331.0,4.89]
[1757302695627,0.0018,4331.1,4331.0,7.19893558]
[1757302695802,0.025,4331.8,4331.1,0.792]
[1757302695995,0.4842,4331.7,4331.2,6.40278379]
[1757302696208,0.025,4331.8,4331.6,2.30856772]
[1757302696502,0.025,4331.8,4331.3,6.40473312]
[1757302696503,0.025,4331.8,4331.7,2.30856245]
[1757302696891,0.0268,4331.8,4331.7,2.30856245]
[1757302697246,0.0268,4331.8,4331.5,2.3086345]
[1757302697433,0.0268,4331.8,4331.3,6.40476463]
[1757302697585,0.0268,4331.8,4331.4,2.30867889]
[1757302698028,0.0268,4331.8,4331.6,2.30861018]
[1757302698229,0.0268,4331.8,4331.3,4.096]
[1757302698431,0.0268,4331.8,4331.5,2.30862741]
[1757302698737,0.0268,4331.8,4331.7,2.30856245]
[1757302698937,0.025,4331.8,4331.7,3.10056245]
[1757302699546,0.025,4331.8,4331.7,11.38726245]
[1757302700735,0.025,4331.8,4331.7,6.10056245]
[1757302700922,0.0268,4331.8,4331.7,10.30776245]
[1757302701291,0.025,4331.8,4331.7,10.30776245]
[1757302701731,0.025,4331.8,4331.7,7.9992]
[1757302701934,0.0268,4331.8,4331.7,7.9992]
[1757302702088,0.0268,4331.8,4331.7,10.30576245]
[1757302702089,0.025,4331.8,4331.7,10.30576245]
[1757302702312,0.025,4331.8,4331.7,11.49946245]
[1757302702654,0.025,4331.8,4331.7,13.0576728]
[1757302702814,0.025,4331.8,4331.7,11.49946245]
[1757302703323,0.025,4331.8,4331.7,11.02616245]
[1757302703526,0.025,4331.8,4331.7,11.48936245]
[1757302705431,0.025,4331.8,4331.7,7.39936245]
[1757302705626,0.025,4331.8,4331.7,11.48736245]
[1757302706244,0.025,4331.8,4331.7,9.39656245]
[1757302706419,0.025,4331.8,4331.7,7.61646245]
[1757302706609,0.025,4331.8,4331.7,8.40846245]
[1757302707012,0.025,4331.8,4331.7,7.48346245]
[1757302707425,0.025,4331.8,4331.7,7.94426245]
[1757302707624,0.025,4331.8,4331.7,12.6101528]
[1757302708039,0.025,4332.8,4332.7,2.30802963]
[1757302708249,0.025,4332.8,4332.7,10.18702963]
[1757302708448,0.025,4332.8,4332.7,10.94372963]
[1757302708756,0.0268,4332.8,4332.7,5.30802963]
[1757302708926,0.0268,4332.8,4332.7,6.39602963]
[1757302709121,0.025,4332.8,4332.7,7.18802963]
[1757302709449,0.025,4332.8,4332.7,2.30802963]
[1757302709646,0.0268,4332.8,4332.4,1.774]
[1757302710027,0.0268,4332.8,4332.6,2.30808275]
[1757302710224,0.0268,4332.8,4332.7,6.39802963]
[1757302710432,0.0268,4332.8,4332.7,4.09]
[1757302711275,0.0268,4332.8,4332.4,4.0821872]
[1757302711276,0.0268,4332.8,4332.4,1.774]
[1757302711562,0.6583,4332.7,4331.6,1.773]
[1757302711735,0.1814,4331.7,4331.2,2.074]
[1757302711941,0.1814,4331.7,4331.4,2.30867943]
[1757302712163,0.1814,4331.7,4331.5,2.30865209]
[1757302712323,0.1814,4331.7,4331.3,2.074]
[1757302712530,0.1814,4331.7,4331.3,4.38277144]
[1757302712728,0.1814,4331.7,4331.4,2.30867792]
[1757302713064,0.1814,4331.7,4331.5,2.30864536]
[1757302713287,0.025,4332.8,4331.7,3.0]
[1757302713430,0.025,4332.8,4332.7,2.30802963]
[1757302713631,0.025,4332.8,4332.7,2.60292963]
[1757302713845,0.025,4332.8,4332.7,5.60292963]
[1757302714631,0.025,4332.8,4332.5,6.39810554]
[1757302714848,0.025,4332.8,4332.7,2.30802963]
[1757302715052,0.025,4332.8,4332.7,6.39602963]
[1757302715980,0.0268,4332.8,4331.8,2.2362]
[1757302716167,0.2064,4332.8,4332.7,0.1152]
[1757302716371,0.42165464,4332.8,4332.7,0.1152]
[1757302716686,0.90035464,4332.8,4332.7,0.1152]
[1757302716978,1.22317208,4332.8,4331.5,2.30865683]
[1757302717183,0.21525464,4332.7,4331.6,2.30861575]
[1757302717345,0.87535464,4332.6,4331.8,2.30849756]
[1757302717682,0.0018,4331.9,4331.7,2.30856131]
[1757302717859,0.87365913,4331.8,4331.4,4.085]
[1757302718065,0.0036,4331.5,4331.2,2.30878711]
[1757302718378,0.0036,4331.5,4331.4,2.30872235]
[1757302718580,1.773,4332.5,4331.4,5.44954235]
[1757302718901,1.773,4332.5,4332.4,2.30818945]
[1757302719101,0.025,4332.8,4332.5,2.30810227]
[1757302719271,0.215509,4332.7,4332.6,2.30807922]
[1757302719869,0.217309,4332.7,4332.4,2.30818349]
[1757302720054,0.215509,4332.6,4332.3,6.39224156]
[1757302720261,0.215509,4332.5,4332.4,2.30817865]
[1757302720485,0.215509,4332.5,4332.2,2.30829163]
[1757302720486,0.215509,4332.5,4332.2,2.30829601]
[1757302720659,0.0018,4332.3,4332.1,2.30832002]
[1757302720855,0.21562373,4332.2,4332.1,2.30834929]
[1757302721186,0.21562373,4332.2,4332.0,4.085]
[1757302721378,0.21562373,4332.1,4332.0,6.39440182]
[1757302722183,0.21742373,4332.1,4331.1,4.773]
[1757302722391,0.21562373,4332.0,4331.5,2.30864246]
[1757302722591,0.21562373,4331.9,4331.4,4.085]
[1757302722910,0.21562373,4331.8,4331.5,4.085]
[1757302723066,0.21562373,4331.7,4331.5,4.086]
[1757302723262,0.21742373,4331.6,4331.1,1.773]
[1757302723609,0.21742373,4331.6,4331.3,2.30876058]
[1757302723610,0.21571,4331.5,4331.3,2.30876058]
[1757302723766,0.21571,4331.4,4331.0,4.086]
[1757302724093,0.21572019,4331.3,4331.2,2.30882896]
[1757302724291,0.1796,4332.0,4331.3,2.30876098]
[1757302724509,0.46451309,4331.9,4331.1,2.30888227]
[1757302724674,0.97375285,4332.3,4331.4,2.30867877]
[1757302724675,0.2157229,4331.8,4331.4,2.30867877]
[1757302724903,0.2157229,4331.7,4331.5,2.30866736]
[1757302725234,0.2157229,4331.6,4331.5,2.30866905]
[1757302726104,2.26805285,4332.4,4331.8,2.3084987]
[1757302726300,0.21575555,4332.3,4331.8,2.3084987]
[1757302726503,0.21575555,4332.3,4331.9,0.02308455]
[1757302726504,0.21575555,4332.2,4331.9,0.02308455]
[1757302726739,0.4787,4332.7,4331.4,4.5418]
[1757302726740,0.2157489,4332.1,4332.0,2.3314866]
[1757302726943,0.2157489,4332.1,4332.0,3.2564866]
[1757302727235,0.2157489,4332.1,4332.0,3.64350258]
[1757302727993,0.2157489,4332.1,4332.0,3.6665866]
[1757302728231,1.8882,4333.1,4332.5,2.30810839]
[1757302728417,0.21577201,4332.7,4332.5,2.42330839]
[1757302728594,0.21577201,4332.6,4332.5,2.42330839]
[1757302729324,0.21577201,4332.6,4332.5,0.1152]
[1757302730128,0.21757201,4332.6,4332.5,0.1152]
[1757302731323,0.0018,4332.6,4332.5,0.1152]
[1757302731724,1.773,4333.1,4332.5,0.1152]
[1757302731895,0.21578343,4332.7,4332.5,2.42331436]
[1757302733236,0.025,4332.8,4332.5,2.42329245]
[1757302734802,0.025,4332.8,4332.5,0.1152]
[1757302735541,0.025,4332.8,4332.5,2.42332416]
[1757302735846,0.025,4332.8,4332.6,2.30808225]
[1757302736044,0.025,4332.8,4332.5,0.1152]
[1757302736403,0.0018,4332.6,4332.5,0.1152]
[1757302736618,2.7708829,4332.6,4332.5,0.1152]
[1757302736939,0.4974013,4332.6,4332.0,0.4548]
[1757302737235,0.025,4332.8,4332.0,0.4548]
[1757302737409,0.025,4332.8,4332.4,2.30816884]
[1757302737751,0.025,4332.8,4332.0,0.4548]
[1757302737752,0.025,4332.8,4332.5,2.30811939]
[1757302738115,0.025,4332.8,4332.2,2.30829401]
[1757302738318,0.1814,4332.6,4331.8,2.79920427]
[1757302738511,0.1814,4332.6,4332.1,2.30833364]
[1757302738846,0.6132,4332.8,4332.3,2.30823732]
[1757302739052,0.6132,4332.8,4332.2,2.30825673]
[1757302739353,0.6132,4332.8,4331.7,0.9455]
[1757302739649,0.6132,4332.8,4332.1,2.30833842]
[1757302739806,0.70050969,4332.7,4331.7,0.9455]
[1757302740352,0.70050969,4332.7,4331.5,0.002]
[1757302740353,0.1796,4331.8,4331.5,0.002]
[1757302741046,1.773,4332.1,4331.5,0.002]
[1757302741246,4.06,4331.9,4331.5,0.002]
[1757302742039,2.30861575,4331.6,4331.5,0.002]
[1757302742237,2.48651575,4331.6,4331.5,0.002]
[1757302743271,2.94751575,4331.6,4331.5,0.002]
[1757302743478,2.95281575,4331.6,4331.5,0.002]
[1757302743860,2.48651575,4331.6,4331.5,0.002]
[1757302744064,4.79781665,4331.6,4331.5,0.002]
[1757302744553,7.1064324,4331.6,4331.5,0.002]
[1757302745287,4.79781665,4331.6,4331.5,0.002]
[1757302745486,3.0474324,4331.6,4331.5,0.002]
[1757302745658,7.1034324,4331.6,4331.5,0.002]
[1757302746196,7.1087324,4331.6,4331.5,0.002]
[1757302746385,7.5697324,4331.6,4331.5,0.002]
[1757302747257,7.6849324,4331.6,4331.5,0.002]
[1757302747488,7.90069686,4331.6,4331.5,0.002]
[1757302747891,17.24729806,4331.6,4331.5,0.002]
[1757302748108,8.2824147,4331.6,4331.5,0.002]
[1757302748302,7.78519686,4331.6,4331.5,0.002]
[1757302748601,0.95458111,4331.6,4331.5,0.002]
[1757302748807,4.2399,4331.6,4331.5,0.002]
[1757302748992,6.54851575,4331.6,4331.5,0.002]
[1757302749588,4.2399,4331.6,4331.5,0.002]
[1757302750183,6.54851575,4331.6,4331.5,0.002]
[1757302751104,7.01481575,4331.6,4331.5,0.002]
[1757302751307,7.94714892,4331.6,4331.5,0.002]
[1757302751477,8.16275748,4331.6,4331.5,0.002]
[1757302752105,8.15745748,4331.6,4331.5,0.002]
[1757302752317,8.16275748,4331.6,4331.5,0.002]
[1757302752527,8.65439613,4331.6,4331.5,0.002]
[1757302752737,8.17075748,4331.6,4331.5,0.002]
[1757302753320,8.16975748,4331.6,4331.5,0.002]
[1757302753633,8.16345748,4331.6,4331.5,0.002]
[1757302754005,7.70245748,4331.6,4331.5,0.002]
[1757302754315,3.63445748,4331.6,4331.5,0.002]
[1757302754635,7.70245748,4331.6,4331.5,0.002]
[1757302755296,3.63445748,4331.6,4331.5,0.002]
[1757302755504,7.48584892,4331.6,4331.5,0.002]
[1757302756322,3.41884892,4331.6,4331.5,0.002]
[1757302756735,7.48184892,4331.6,4331.5,0.002]
[1757302757104,3.41884892,4331.6,4331.5,0.002]
[1757302757307,7.48184892,4331.6,4331.5,0.002]
[1757302757840,0.93233317,4331.6,4331.5,0.3012]
[1757302758005,6.48581575,4331.6,4331.5,0.3012]
[1757302758325,6.48581575,4331.6,4331.5,0.002]
[1757302758534,6.66201575,4331.6,4331.5,0.002]
[1757302760010,7.12301575,4331.6,4331.5,0.002]
[1757302760502,7.13001575,4331.6,4331.5,0.002]
[1757302760721,8.07386891,4331.6,4331.5,0.002]
[1757302761912,8.06686891,4331.6,4331.5,0.002]
[1757302762916,3.54386891,4331.6,4331.5,0.002]
[1757302763242,7.69816849,4331.6,4331.5,0.002]
[1757302763445,8.16476849,4331.6,4331.5,0.002]
[1757302764596,8.15776849,4331.6,4331.5,0.002]
[1757302764901,8.16476849,4331.6,4331.5,0.002]
[1757302765339,7.69816849,4331.6,4331.5,0.002]
[1757302765540,3.64416849,4331.6,4331.5,0.002]
[1757302765745,7.69416849,4331.6,4331.5,0.002]
[1757302766118,3.64416849,4331.6,4331.5,0.002]
[1757302766340,7.51596849,4331.6,4331.5,0.002]
[1757302766840,1.15935274,4331.6,4331.5,0.002]
[1757302767010,4.1632,4331.6,4331.5,1.2272]
[1757302767430,6.47181575,4331.6,4331.5,1.2272]
[1757302767741,4.1632,4331.6,4331.5,0.734]
[1757302767923,4.1622,4331.6,4331.5,1.2272]
[1757302768451,0.1152,4331.6,4331.5,1.2272]
[1757302768756,4.046,4331.6,4331.5,3.65858905]
[1757302769346,4.045,4331.6,4331.5,3.53586905]
[1757302769514,1.774,4332.1,4331.9,2.30840573]
[1757302769714,1.774,4332.1,4332.0,2.30840258]
[1757302769913,1.774,4332.1,4332.0,2.59630258]
[1757302769914,5.819,4332.1,4332.0,2.59630258]
[1757302770332,5.818,4332.1,4332.0,3.53360258]
[1757302770547,5.80653704,4332.1,4332.0,3.53360258]
[1757302770741,4.044,4332.1,4332.0,3.53360258]
[1757302771306,4.044,4332.1,4332.0,0.2879]
[1757302771507,4.4484,4332.1,4331.6,0.4441]
[1757302771701,4.4484,4332.1,4331.5,0.002]
[1757302771702,6.35236439,4332.1,4331.5,0.002]
[1757302771922,5.818,4332.1,4331.5,0.002]
[1757302772135,5.818,4332.1,4331.5,0.4461]
[1757302772312,1.774,4332.1,4332.0,0.2879]
[1757302772514,5.818,4332.1,4332.0,0.2879]
[1757302772714,5.818,4332.1,4332.0,1.2252]
[1757302772920,1.774,4332.1,4332.0,1.2252]
[1757302773527,5.816,4332.1,4332.0,1.2252]
[1757302775022,1.774,4332.1,4332.0,3.53360258]
[1757302775431,5.813,4332.1,4332.0,3.53360258]
[1757302775636,0.001,4332.7,4332.1,2.30834929]
[1757302775832,0.001,4332.7,4332.5,2.30813158]
[1757302776041,3.737,4332.6,4332.1,0.9373]
[1757302776244,3.737,4332.6,4332.5,0.2879]
[1757302776412,4.037,4332.6,4332.5,3.53333618]
[1757302776812,0.001,4332.7,4332.6,2.3080829]
[1757302777009,4.038,4332.7,4332.6,3.2453829]
[1757302777225,4.038,4332.7,4332.6,3.5332829]